bitfinex/quotes_ETHUSD_20250801
["timestamp","ask_amount","ask_price","bid_price","bid_amount"]
[1754085931169,4.589,3525.3,3525.2,0.4311]
[1754085931329,4.589,3525.3,3524.6,0.4311]
[1754085931529,4.589,3525.3,3525.1,2.8367959]
[1754085931724,4.589,3525.3,3524.5,0.4721]
[1754085931725,0.55,3525.2,3524.5,0.4311]
[1754085932153,0.55,3525.2,3524.5,3.4311]
[1754085932355,4.589,3525.3,3524.5,0.4311]
[1754085932560,4.608,3525.2,3524.5,0.4311]
[1754085932762,2.83690346,3525.0,3524.3,2.83743822]
[1754085932965,0.4763,3525.2,3524.4,0.4311]
[1754085933139,6.809,3525.6,3524.4,0.4311]
[1754085933465,0.55,3525.2,3524.5,2.83724945]
[1754085933763,0.55,3525.0,3522.5,6.25323529]
[1754085933980,0.55,3524.2,3523.5,2.83803041]
[1754085934131,0.55,3524.0,3523.2,0.4311]
[1754085934329,1.11473,3524.0,3521.6,2.8396115]
[1754085934665,2.83793937,3523.7,3523.0,2.83847662]
[1754085934966,0.55,3523.5,3520.7,6.25323529]
[1754085935152,0.9267,3523.4,3520.9,2.29612667]
[1754085935353,5.1063,3523.3,3521.2,3.0]
[1754085935553,0.55,3523.2,3521.5,2.83969899]
[1754085935738,0.55,3523.2,3522.8,2.83863826]
[1754085935938,4.634,3523.1,3522.4,0.4721]
[1754085936139,4.634,3523.1,3522.8,2.83863366]
[1754085936339,0.55,3523.0,3521.9,0.4721]
[1754085936552,4.634,3523.1,3522.1,0.4311]
[1754085936779,4.646,3523.8,3523.7,2.83792604]
[1754085936950,0.4763,3524.4,3523.4,3.26925199]
[1754085937131,4.651,3524.3,3523.7,0.4311]
[1754085937335,4.651,3524.4,3524.2,0.1416]
[1754085937564,4.651,3524.4,3522.7,1.20920475]
[1754085937565,7.48845632,3524.3,3523.2,0.4311]
[1754085937794,2.97912476,3524.2,3523.7,0.1416]
[1754085937996,0.55,3524.2,3523.2,0.4311]
[1754085938208,0.1416,3523.9,3523.4,0.1416]
[1754085938415,0.1416,3523.9,3523.0,0.4721]
[1754085938416,4.651,3524.3,3524.2,2.8375234]
[1754085938731,4.651,3524.3,3524.0,2.8376284]
[1754085938911,4.651,3524.3,3523.5,0.4721]
[1754085939107,4.651,3524.3,3524.1,2.83760392]
[1754085939314,4.651,3524.3,3524.0,2.97922814]
[1754085939477,4.651,3524.3,3524.0,0.1416]
[1754085939678,4.651,3524.3,3524.2,2.8375234]
[1754085939877,4.651,3524.3,3524.2,3.8823234]
[1754085940509,4.651,3524.3,3524.0,2.8376256]
[1754085940680,4.651,3524.3,3524.2,2.8375234]
[1754085941129,0.1416,3524.6,3524.5,2.83728188]
[1754085941497,4.651,3525.0,3524.9,2.83695991]
[1754085941694,4.651,3525.0,3524.9,3.26805991]
[1754085941919,4.651,3525.0,3524.9,0.1416]
[1754085942457,4.655,3525.9,3524.9,1.0448]
[1754085942741,0.1416,3526.1,3525.8,2.83617092]
[1754085942896,2.83584261,3526.3,3525.9,0.4311]
[1754085943235,7.48975538,3526.4,3526.0,0.1416]
[1754085943526,2.83606875,3526.1,3525.6,0.4311]
[1754085943760,1.0263,3526.0,3524.9,0.4311]
[1754085943954,0.1416,3525.4,3524.6,0.1416]
[1754085944158,0.1416,3525.4,3524.1,3.4311]
[1754085944159,4.667,3525.3,3524.7,2.83708777]
[1754085944312,4.8086,3525.3,3524.8,0.1416]
[1754085944508,2.83694717,3525.0,3524.2,2.83746862]
[1754085944726,1.09579384,3525.3,3524.3,3.02837442]
[1754085944960,0.1416,3525.9,3524.9,0.1416]
[1754085945291,4.669,3525.8,3525.5,0.1416]
[1754085945646,7.50524918,3525.8,3525.5,0.1416]
[1754085945840,0.4541,3525.7,3525.5,0.1416]
[1754085946005,0.4541,3525.7,3524.3,0.4529]
[1754085946006,4.669,3525.8,3525.4,0.1416]
[1754085946206,5.1231,3525.8,3525.4,0.1416]
[1754085946422,4.669,3525.8,3525.4,0.1416]
[1754085947042,7.50528865,3525.8,3525.4,0.1416]
[1754085947314,3.38647709,3525.5,3525.4,0.1416]
[1754085947514,2.83700417,3524.9,3524.0,0.4381]
[1754085947709,4.663,3524.8,3524.2,2.83745624]
[1754085947971,7.50004072,3524.8,3524.1,2.83757965]
[1754085948113,7.50004072,3524.8,3524.2,3.0]
[1754085948310,7.50004072,3524.8,3523.4,0.893]
[1754085948311,2.83727276,3524.6,3523.4,0.893]
[1754085948512,5.1171,3524.8,3524.2,2.83747116]
[1754085948809,2.83719512,3524.7,3524.0,0.4381]
[1754085949016,2.83741617,3524.4,3523.7,3.0]
[1754085949210,7.50241617,3524.4,3523.6,2.83795115]
[1754085949447,4.665,3524.4,3523.4,0.002]
[1754085949648,2.83761524,3524.1,3523.4,0.002]
[1754085949814,2.8375234,3524.2,3523.4,0.002]
[1754085950144,2.83776549,3523.9,3523.4,0.002]
[1754085950462,0.4541,3524.3,3523.4,2.84010836]
[1754085950463,4.666,3523.8,3523.4,2.84010836]
[1754085950617,0.4541,3523.7,3523.4,0.002]
[1754085951465,4.666,3523.8,3523.4,0.002]
[1754085951933,0.4541,3523.7,3523.4,0.002]
[1754085952358,2.83808712,3523.5,3523.4,0.002]
[1754085952718,7.56724162,3524.4,3523.4,0.4401]
[1754085952929,4.662,3524.3,3524.2,2.8375234]
[1754085953157,4.668,3524.4,3524.2,3.2756234]
[1754085953327,4.668,3524.5,3524.2,0.4381]
[1754085953553,4.667,3524.4,3523.9,2.83776468]
[1754085953728,4.667,3524.4,3524.3,2.83744289]
[1754085953927,4.667,3524.4,3524.3,3.27554289]
[1754085954163,4.667,3524.4,3524.3,0.4381]
[1754085954532,4.667,3524.4,3524.3,3.27554289]
[1754085954852,0.4541,3525.1,3524.0,2.83760722]
[1754085955025,2.83733594,3524.5,3523.2,3.4381]
[1754085955232,4.666,3524.4,3523.6,3.0]
[1754085955433,4.666,3524.4,3523.9,2.83772552]
[1754085955676,4.666,3524.4,3524.2,2.83751719]
[1754085955833,4.666,3524.4,3524.1,2.83757407]
[1754085956252,4.666,3524.4,3524.2,2.83751082]
[1754085956566,4.666,3524.4,3524.1,2.83757267]
[1754085957052,4.664,3524.3,3524.2,2.8375145]
[1754085957568,4.664,3524.3,3524.2,0.1416]
[1754085958066,4.658,3524.3,3524.2,2.9791234]
[1754085958271,3.43283431,3524.7,3524.2,0.1416]
[1754085958479,4.659,3524.3,3524.2,0.1416]
[1754085959830,7.95054289,3524.3,3524.2,0.1416]
[1754085960064,5.1131,3524.3,3524.2,0.1416]
[1754085960458,5.1131,3524.3,3523.8,2.83784489]
[1754085960459,6.19187026,3524.3,3523.8,2.83784489]
[1754085960665,0.4541,3524.2,3524.0,0.1416]
[1754085960865,4.651,3524.1,3524.0,0.1416]
[1754085961347,5.1051,3524.1,3524.0,0.1416]
[1754085961698,3.29136186,3524.6,3523.8,2.83782557]
[1754085961848,2.97876323,3524.7,3524.0,0.1416]
[1754085962045,4.649,3524.6,3524.2,0.1416]
[1754085962246,2.83744289,3524.3,3524.2,0.1416]
[1754085962749,2.83732684,3524.5,3524.2,0.1416]
[1754085962945,0.4671,3526.4,3524.3,9.10729034]
[1754085963144,0.4671,3526.4,3524.2,3.891]
[1754085963145,0.1416,3526.4,3525.6,0.1416]
[1754085963378,2.83610204,3526.0,3525.2,0.4381]
[1754085963693,5.5712,3525.9,3523.4,0.002]
[1754085963996,2.83740812,3524.4,3524.2,0.1416]
[1754085964293,4.654,3524.3,3524.2,0.1416]
[1754085964844,0.1416,3524.7,3524.4,2.83730991]
[1754085965070,4.654,3524.6,3524.4,2.83730741]
[1754085965354,0.4541,3524.5,3524.2,0.1416]
[1754085965573,0.4541,3524.5,3523.6,0.4381]
[1754085965885,4.654,3524.6,3523.6,0.4381]
[1754085965886,4.654,3524.6,3524.3,0.1416]
[1754085966261,0.4541,3524.5,3524.3,0.1416]
[1754085966646,0.4541,3524.5,3523.4,5.84011173]
[1754085966647,0.4541,3524.4,3523.4,0.002]
[1754085966846,0.1416,3523.9,3523.4,0.002]
[1754085967150,4.648,3523.8,3523.4,0.1436]
[1754085967380,4.648,3523.8,3523.4,2.98174418]
[1754085967680,4.648,3523.8,3523.4,0.1436]
[1754085967918,3.29209167,3523.7,3523.4,0.1436]
[1754085968118,2.97968712,3523.5,3523.4,0.002]
[1754085968322,3.52968712,3523.5,3523.4,0.002]
[1754085968486,0.4541,3523.8,3523.4,0.002]
[1754085968687,4.648,3523.7,3523.4,0.002]
[1754085968923,2.97965783,3523.6,3523.4,0.002]
[1754085969162,2.83714035,3524.7,3523.4,0.002]
[1754085969163,4.654,3523.5,3523.4,0.002]
[1754085970088,5.1081,3523.5,3523.4,0.002]
[1754085970320,7.94618712,3523.5,3523.4,0.002]
[1754085970523,8.55488712,3523.5,3523.4,0.002]
[1754085971025,4.7926,3523.5,3523.4,3.27826767]
[1754085971411,0.1416,3523.5,3523.4,7.3428206]
[1754085971721,2.85,3524.5,3523.4,1.50465293]
[1754085971927,2.85,3524.5,3524.1,2.83755194]
[1754085972138,2.85,3524.5,3524.2,3.27556661]
[1754085972291,2.85,3524.5,3523.9,2.83769151]
[1754085972486,2.85,3524.5,3524.2,2.83750509]
[1754085972739,2.85,3524.5,3523.9,0.32905915]
[1754085973030,0.4551,3525.8,3524.3,0.4381]
[1754085973228,4.651,3525.5,3524.3,0.4381]
[1754085973418,2.83668944,3525.3,3524.4,2.83736238]
[1754085973595,2.8368117,3525.1,3524.3,0.4381]
[1754085973791,5.5712,3525.0,3523.4,0.002]
[1754085973986,2.83791434,3523.8,3523.4,0.002]
[1754085974410,4.657,3523.7,3523.4,0.002]
[1754085974612,7.94907794,3523.7,3523.4,0.002]
[1754085974813,2.83808712,3523.5,3523.4,0.002]
[1754085975201,4.13842603,3523.5,3523.4,0.002]
[1754085975815,4.68842603,3523.5,3523.4,0.002]
[1754085976291,0.4541,3523.5,3523.4,0.002]
[1754085976606,4.655,3523.5,3523.4,0.002]
[1754085977533,8.43938712,3523.5,3523.4,0.002]
[1754085978031,8.98938712,3523.5,3523.4,0.002]
[1754085980728,4.33438712,3523.5,3523.4,0.002]
[1754085980932,9.70062516,3523.5,3523.4,0.002]
[1754085981335,7.97828712,3523.5,3523.4,0.002]
[1754085981629,8.57498712,3523.5,3523.4,0.002]
[1754085981829,9.12498712,3523.5,3523.4,0.002]
[1754085982329,3.92598712,3523.5,3523.4,0.002]
[1754085982635,9.12698712,3523.5,3523.4,0.002]
[1754085982830,10.60728462,3523.5,3523.4,0.002]
[1754085984323,5.95628462,3523.5,3523.4,0.002]
[1754085984523,10.60528462,3523.5,3523.4,0.002]
[1754085985303,3.38840935,3523.1,3523.0,1e-08]
[1754085985499,8.17900935,3523.1,3523.0,1e-08]
[1754085985704,10.32167214,3523.1,3523.0,1e-08]
[1754085985905,13.32167214,3523.1,3523.0,1e-08]
[1754085986317,0.55,3522.1,3520.8,0.004]
[1754085986518,0.1416,3521.2,3520.8,0.004]
[1754085986742,4.652,3521.1,3520.8,0.004]
[1754085986942,4.652,3521.1,3520.8,0.4712]
[1754085987239,4.651,3521.0,3520.9,3.3073829]
[1754085987442,4.651,3521.0,3520.9,0.4672]
[1754085987755,4.65,3521.0,3520.9,4.0637]
[1754085988055,1.19636279,3523.1,3522.4,2.83896775]
[1754085988056,0.4912,3522.9,3522.4,2.83896775]
[1754085988203,0.4912,3522.9,3521.4,2.8397316]
[1754085988204,0.1416,3522.5,3521.4,2.8397316]
[1754085988408,4.653,3522.4,3522.0,0.6088]
[1754085988808,4.653,3522.4,3522.0,0.1416]
[1754085989020,0.1416,3522.5,3522.4,2.83897342]
[1754085989234,4.7946,3522.5,3522.4,1.58124081]
[1754085989541,4.653,3522.5,3522.0,0.4672]
[1754085989758,2.83897342,3522.4,3520.8,0.004]
[1754085990065,0.9463,3522.3,3520.9,0.72578406]
[1754085990224,8.42213,3522.2,3520.8,0.004]
[1754085990465,0.55,3522.0,3520.8,0.004]
[1754085990657,2.83945709,3521.8,3520.8,0.004]
[1754085990954,2.8401829,3520.9,3520.8,0.004]
[1754085991154,4.658,3520.9,3520.8,0.004]
[1754085991318,4.658,3520.9,3520.8,3.31346357]
[1754085991519,0.4912,3521.9,3520.9,2.84014469]
[1754085991737,4.657,3521.8,3520.8,1.11738472]
[1754085991926,2.8401829,3520.9,3520.8,0.006]
[1754085992120,7.38093,3522.2,3520.9,3.4672]
[1754085992434,5.1492,3522.1,3520.9,0.4672]
[1754085992620,4.66,3522.0,3521.0,0.84723]
[1754085992821,4.66,3522.0,3521.5,2.83964545]
[1754085993025,6.821,3522.2,3521.6,0.4672]
[1754085993348,4.66,3522.1,3521.4,3.0]
[1754085993660,4.66,3522.1,3521.2,0.4672]
[1754085993841,2.83948797,3521.8,3521.1,3.0]
[1754085994169,4.662,3521.7,3521.1,2.84001976]
[1754085994371,6.821,3522.2,3521.8,2.8393798]
[1754085994568,4.662,3522.1,3521.2,3.78963879]
[1754085994867,6.821,3522.2,3521.3,3.6859769]
[1754085995073,2.83938261,3521.9,3521.3,0.84616388]
[1754085995272,6.821,3522.2,3521.2,0.4541]
[1754085995473,4.66,3522.1,3521.4,0.4672]
[1754085995779,7.99043544,3522.1,3521.0,0.4672]
[1754085995926,5.1512,3522.1,3521.5,2.83969863]
[1754085996128,7.99041921,3522.1,3521.3,2.83984808]
[1754085996372,2.83951432,3521.8,3521.0,0.4672]
[1754085996668,4.661,3521.7,3520.9,2.84017628]
[1754085996960,4.661,3521.7,3520.8,0.006]
[1754085997161,7.50054406,3521.7,3521.1,2.83994981]
[1754085997459,7.50059232,3521.7,3521.0,2.84008444]
[1754085997666,4.661,3521.7,3520.8,0.006]
[1754085997869,4.661,3521.7,3521.2,2.83988449]
[1754085998029,4.661,3521.7,3521.1,2.84000821]
[1754085998030,7.50054893,3521.7,3521.1,2.84000821]
[1754085998232,4.661,3521.7,3521.2,2.83987603]
[1754085998434,4.661,3521.7,3520.8,0.4732]
[1754085998663,4.661,3521.7,3520.8,3.31339783]
[1754085998860,2.83966951,3521.6,3520.8,0.4732]
[1754085999061,7.50055127,3521.7,3520.8,3.31339715]
[1754085999233,2.83974616,3521.5,3520.8,3.31343638]
[1754085999429,4.661,3521.7,3521.0,2.84010132]
[1754085999430,7.50056091,3521.7,3521.0,2.84010132]
[1754085999629,0.1416,3521.5,3521.0,0.1424]
[1754086000166,2.83982928,3521.4,3521.0,0.1424]
[1754086000348,4.65,3521.3,3521.0,0.1424]
[1754086000951,0.1416,3521.5,3521.1,0.9213]
[1754086001155,0.1416,3521.5,3521.4,2.83977963]
[1754086001360,0.1416,3521.5,3521.4,4.25391666]
[1754086001663,4.649,3521.9,3521.5,2.83965719]
[1754086001829,4.649,3521.9,3521.6,2.83960532]
[1754086002032,4.649,3521.9,3521.4,0.94693703]
[1754086002265,4.649,3521.9,3520.8,0.4601]
[1754086002266,0.4912,3523.1,3521.5,0.94969698]
[1754086002562,2.83880549,3522.7,3522.3,0.1416]
[1754086002875,0.1416,3522.8,3522.4,0.4672]
[1754086003078,0.1416,3523.1,3522.7,2.83872604]
[1754086003374,4.65,3523.0,3522.6,0.1416]
[1754086003546,0.4912,3522.9,3521.7,0.4672]
[1754086003866,0.4912,3522.9,3522.3,0.1416]
[1754086003867,0.1416,3522.8,3522.3,0.1416]
[1754086004033,0.1416,3522.8,3522.4,2.83897037]
[1754086004233,0.1416,3522.8,3522.3,0.6088]
[1754086004234,0.1416,3522.8,3522.3,3.44782841]
[1754086004429,0.1416,3523.0,3522.5,0.1416]
[1754086004772,2.83816096,3523.5,3522.6,0.9213]
[1754086005072,4.649,3523.4,3522.8,2.83865107]
[1754086005230,6.823,3523.6,3523.4,2.83813965]
[1754086005432,4.649,3523.5,3523.4,2.83813965]
[1754086005773,6.823,3523.6,3523.5,3.29928712]
[1754086005932,0.4712,3524.6,3523.8,2.8378455]
[1754086006262,4.647,3524.0,3523.8,2.8378455]
[1754086006470,4.647,3524.2,3523.8,3.2990455]
[1754086006652,4.647,3524.1,3523.8,3.2990455]
[1754086006973,4.647,3524.1,3522.9,0.4612]
[1754086007130,4.646,3523.8,3522.9,0.4612]
[1754086007332,0.001,3523.9,3523.8,2.8378455]
[1754086007660,4.647,3523.9,3523.8,3.2990455]
[1754086007860,7.48577372,3523.9,3523.0,3.32997512]
[1754086008166,7.48577372,3523.9,3522.9,0.4612]
[1754086008167,5.1192,3523.9,3522.9,0.4612]
[1754086008356,5.1192,3523.9,3523.3,2.83820404]
[1754086008357,0.4722,3523.9,3523.3,2.83820404]
[1754086008559,2.83798781,3523.7,3522.9,0.4612]
[1754086008870,4.645,3523.8,3522.6,0.4915]
[1754086008871,0.4712,3523.6,3523.0,3.0]
[1754086009183,2.83808712,3523.5,3522.5,2.83884274]
[1754086009383,2.83808712,3523.5,3522.2,2.8390597]
[1754086009384,2.83855734,3523.0,3522.2,2.8390597]
[1754086009567,4.643,3522.9,3521.9,0.4612]
[1754086009761,7.48159226,3522.9,3522.2,5.83910042]
[1754086009964,4.643,3522.9,3521.9,0.4612]
[1754086010162,4.643,3522.9,3522.4,2.83892089]
[1754086010678,4.643,3522.9,3522.5,0.4612]
[1754086011076,4.643,3522.9,3522.6,2.83881224]
[1754086011377,4.643,3522.9,3522.7,0.4612]
[1754086011581,0.4712,3523.4,3522.2,2.83906543]
[1754086011746,4.64,3523.3,3522.3,0.4612]
[1754086011940,4.64,3523.3,3522.7,2.83865476]
[1754086012443,4.64,3523.3,3522.3,0.9527]
[1754086012643,4.64,3523.3,3522.3,0.4612]
[1754086012839,1.43772,3523.2,3521.8,0.9527]
[1754086013046,2.83878981,3522.7,3522.0,3.0]
[1754086013248,4.638,3522.6,3521.9,5.83937568]
[1754086013487,4.638,3522.6,3522.0,2.83924728]
[1754086013901,0.4712,3522.5,3521.3,0.4612]
[1754086014182,0.55646,3522.4,3520.9,3.30136954]
[1754086014347,2.83940088,3521.9,3521.2,2.83993049]
[1754086014548,7.47545709,3521.8,3521.7,0.1416]
[1754086014749,2.83953772,3521.7,3521.5,0.1416]
[1754086014948,0.4712,3521.7,3521.4,0.1416]
[1754086015194,4.636,3521.8,3521.4,2.98135021]
[1754086015691,7.4755341,3521.8,3521.4,0.1416]
[1754086015895,1.97224498,3521.7,3520.8,0.006]
[1754086016187,0.6128,3521.7,3521.3,2.83983314]
[1754086016684,3.45235896,3521.7,3521.2,0.1416]
[1754086016901,0.4712,3521.6,3521.2,0.1416]
[1754086017080,0.1416,3521.7,3521.4,2.83977303]
[1754086017403,0.1416,3521.7,3521.2,0.1416]
[1754086017564,0.6128,3521.7,3521.2,2.98148923]
[1754086017766,3.31083759,3521.6,3521.2,0.1416]
[1754086017967,2.83963759,3521.6,3521.2,0.1416]
[1754086018269,0.4712,3521.5,3521.2,0.1416]
[1754086018776,0.1416,3521.7,3521.3,2.83980098]
[1754086018977,0.1416,3521.7,3521.4,0.4612]
[1754086019211,4.628,3521.6,3521.4,0.4612]
[1754086019377,4.628,3521.6,3521.5,2.83969899]
[1754086019584,4.628,3521.6,3521.4,2.83976002]
[1754086019783,4.628,3521.6,3521.5,2.98129899]
[1754086020211,0.1416,3522.2,3521.5,0.1416]
[1754086020381,4.627,3522.1,3521.6,0.02839618]
[1754086020705,0.9266,3522.0,3521.6,0.1416]
[1754086020907,0.9266,3521.9,3520.9,3.0]
[1754086021066,0.4712,3521.8,3521.4,0.1416]
[1754086021561,3.31076845,3521.7,3521.4,0.1416]
[1754086021765,5.0942,3521.6,3521.4,0.1416]
[1754086021965,7.93382778,3521.6,3521.0,2.84009834]
[1754086022208,2.83970902,3521.5,3521.2,0.1416]
[1754086022503,2.83979514,3521.4,3520.8,0.006]
[1754086022669,1.0682,3521.5,3521.0,0.1424]
[1754086023011,2.83986027,3521.3,3521.0,0.1424]
[1754086023179,3.83439587,3521.5,3521.0,0.1424]
[1754086023381,0.4712,3521.2,3521.0,0.1424]
[1754086023588,4.621,3521.1,3521.0,0.1424]
[1754086023777,0.4712,3521.8,3521.0,0.1424]
[1754086023985,0.1416,3521.6,3521.0,0.1424]
[1754086024189,4.619,3521.5,3521.3,2.83983849]
[1754086024389,0.4712,3522.3,3521.0,3.35998721]
[1754086024574,0.4712,3522.7,3521.6,3.0]
[1754086024782,6.821,3523.3,3522.8,2.83863474]
[1754086024783,0.4712,3523.1,3522.8,2.83863474]
[1754086025012,4.624,3523.0,3522.8,0.1416]
[1754086025320,5.0952,3523.0,3522.8,0.1416]
[1754086025476,0.560632,3522.9,3522.8,0.1416]
[1754086025676,0.51112,3523.2,3522.3,0.4612]
[1754086025907,4.625,3522.9,3522.7,0.1416]
[1754086026119,4.625,3522.9,3522.7,2.98026893]
[1754086026285,4.625,3522.9,3522.7,2.98031506]
[1754086026474,4.625,3522.9,3522.7,0.1416]
[1754086026673,4.625,3522.9,3522.8,2.83865107]
[1754086027303,6.821,3523.3,3523.2,2.83832879]
[1754086027502,4.624,3523.3,3523.2,0.4612]
[1754086027702,4.624,3523.3,3523.2,3.44112879]
[1754086027917,0.001,3523.5,3523.4,2.83816767]
[1754086028290,0.001,3523.5,3523.4,2.97976767]
[1754086028616,0.4722,3523.5,3522.3,0.9527]
[1754086028817,0.001,3523.5,3523.3,0.1416]
[1754086029139,0.4712,3523.4,3523.2,0.1416]
[1754086029437,0.001,3523.5,3523.2,0.1416]
[1754086029618,4.619,3523.4,3523.2,0.1416]
[1754086029784,0.4712,3523.3,3523.2,0.1416]
[1754086029981,2.83839471,3523.2,3522.4,2.83895832]
[1754086030180,2.83848992,3523.0,3522.7,0.1416]
[1754086030385,2.83878815,3522.7,3522.3,0.1416]
[1754086030585,2.83881224,3522.6,3522.3,0.1416]
[1754086030811,0.4712,3522.6,3522.3,0.1416]
[1754086031121,2.83897342,3522.4,3522.3,0.1416]
[1754086031286,7.92817342,3522.4,3522.3,0.1416]
[1754086031728,7.92817342,3522.4,3521.1,2.83995866]
[1754086031729,2.83945133,3521.9,3521.1,2.83995866]
[1754086031954,5.0902,3521.8,3521.0,0.002]
[1754086032116,2.98113772,3521.7,3521.2,0.1416]
[1754086032319,2.83986027,3521.3,3521.0,0.002]
[1754086032555,4.618,3521.2,3521.0,0.1444]
[1754086032762,7.92915386,3521.2,3521.0,0.1444]
[1754086032917,5.0892,3521.2,3521.0,0.1444]
[1754086033112,7.92916524,3521.2,3521.0,0.1444]
[1754086033332,5.0892,3521.2,3521.0,0.1444]
[1754086033547,4.618,3521.2,3521.0,0.1444]
[1754086033717,7.9291465,3521.2,3521.0,0.1444]
[1754086034055,3.31122158,3521.1,3521.0,0.002]
[1754086034419,0.4712,3521.1,3521.0,0.002]
[1754086034620,3.31122158,3521.1,3521.0,0.002]
[1754086034826,0.4712,3521.1,3521.0,0.002]
[1754086035020,3.31122158,3521.1,3521.0,0.002]
[1754086036273,4.89203051,3521.1,3521.0,0.002]
[1754086036413,5.03443051,3521.1,3521.0,0.002]
[1754086038754,5.03443051,3521.1,3520.8,0.006]
[1754086038755,2.8401829,3520.9,3520.8,0.006]
[1754086038946,7.5865829,3520.9,3520.8,0.006]
[1754086039341,8.0387829,3520.9,3520.8,0.006]
[1754086039547,9.68452424,3520.9,3520.8,0.006]
[1754086040733,2.84034424,3520.7,3520.6,0.002]
[1754086041136,3.87914424,3520.7,3520.6,0.002]
[1754086041834,3.43494424,3520.7,3520.6,0.002]
[1754086042036,8.78561915,3520.7,3520.6,0.002]
[1754086042447,1.34227491,3520.7,3520.6,0.002]
[1754086042647,5.1946,3520.7,3520.6,0.002]
[1754086043135,0.5946,3520.7,3520.6,0.002]
[1754086043335,5.1936,3520.7,3520.6,0.002]
[1754086043536,4.7414,3520.7,3520.6,0.002]
[1754086043985,7.43934424,3520.7,3520.6,0.002]
[1754086044154,8.64971866,3520.7,3520.6,0.002]
[1754086044347,9.09391866,3520.7,3520.6,0.002]
[1754086045178,8.64971866,3520.7,3520.6,0.002]
[1754086045339,9.09191866,3520.7,3520.6,0.002]
[1754086046137,5.35317442,3520.7,3520.6,2.84242492]
[1754086046349,0.1424,3520.8,3520.7,2.84034424]
[1754086046640,0.1424,3520.8,3520.6,0.002]
[1754086046641,4.7384,3520.8,3520.6,0.002]
[1754086046858,3.29254424,3520.7,3520.6,0.002]
[1754086047184,3.73674424,3520.7,3520.6,0.002]
[1754086047484,4.86828405,3520.7,3520.6,0.002]
[1754086048080,9.02008405,3520.7,3520.6,0.002]
[1754086048262,9.01908405,3520.7,3520.6,0.002]
[1754086048584,7.57674424,3520.7,3520.6,0.002]
[1754086048782,5.1946,3520.7,3520.6,0.002]
[1754086049081,4.7424,3520.7,3520.6,2.84242492]
[1754086049461,4.7424,3520.7,3520.6,0.002]
[1754086049661,4.7404,3520.7,3520.6,0.002]
[1754086049959,0.1424,3520.7,3520.6,2.84242492]
[1754086050165,4.597,3520.7,3520.6,3.28272492]
[1754086050380,4.597,3520.7,3520.6,0.4423]
[1754086050629,0.1424,3520.8,3520.6,3.28272492]
[1754086050782,4.596,3520.7,3520.6,2.84242492]
[1754086051084,0.001,3521.1,3521.0,2.84010224]
[1754086051243,4.596,3521.1,3520.8,2.84019311]
[1754086051444,4.596,3521.1,3520.7,0.9098]
[1754086051445,4.7384,3521.1,3520.7,2.840341]
[1754086051749,4.7384,3521.1,3520.6,0.1444]
[1754086051949,1.15604,3521.0,3520.9,2.8401829]
[1754086052189,0.1434,3521.1,3521.0,2.84010224]
[1754086052479,4.595,3521.1,3521.0,3.74990224]
[1754086052681,4.595,3521.1,3521.0,3.89230224]
[1754086052682,0.001,3521.1,3521.0,3.89230224]
[1754086052884,4.594,3521.1,3521.0,3.89230224]
[1754086053057,0.001,3521.1,3521.0,3.89230224]
[1754086053258,0.001,3521.5,3521.4,2.83977963]
[1754086053458,4.594,3521.5,3521.4,2.83977963]
[1754086053681,4.594,3521.5,3521.4,2.98137963]
[1754086053852,4.594,3521.5,3521.4,3.89117963]
[1754086054047,4.593,3521.5,3521.4,3.89117963]
[1754086054249,5.0523,3521.5,3521.4,0.1416]
[1754086054462,2.84007145,3521.1,3520.6,0.002]
[1754086054659,0.4603,3521.5,3520.8,2.84026123]
[1754086054895,4.595,3521.4,3521.0,0.1424]
[1754086055097,2.84002158,3521.1,3521.0,0.1424]
[1754086055396,7.43702158,3521.1,3521.0,0.1424]
[1754086055691,0.4522,3521.4,3520.7,2.84034424]
[1754086055993,0.1416,3521.2,3520.7,0.1424]
[1754086056197,0.4522,3521.1,3520.6,0.002]
[1754086056497,3.18345718,3521.2,3520.6,0.002]
[1754086056692,0.1424,3521.0,3520.7,2.84031724]
[1754086056998,2.98249943,3521.1,3520.7,0.4403]
[1754086057158,4.598,3520.9,3520.7,0.4403]
[1754086057362,4.598,3520.9,3520.6,0.002]
[1754086058130,4.598,3520.9,3520.8,2.84026357]
[1754086058297,4.598,3520.9,3520.8,3.75006357]
[1754086058460,4.594,3520.9,3520.8,3.75006357]
[1754086059068,0.001,3521.5,3521.1,2.83999815]
[1754086059401,4.593,3521.4,3521.0,2.84010224]
[1754086059581,0.001,3521.5,3521.4,0.1416]
[1754086059897,4.593,3521.5,3521.4,3.28007963]
[1754086060104,0.001,3521.5,3521.4,3.74957963]
[1754086060307,0.001,3521.5,3521.4,4.59268289]
[1754086060601,0.001,3521.5,3521.4,4.5642851]
[1754086061099,0.001,3521.5,3521.4,7.5642851]
[1754086061879,0.001,3522.1,3522.0,2.83929585]
[1754086062081,0.001,3522.1,3522.0,6.0092888]
[1754086062381,0.001,3522.1,3522.0,8.13007998]
[1754086062708,4.59,3523.6,3523.4,2.83816767]
[1754086063010,0.4522,3524.6,3523.4,2.97976767]
[1754086063177,4.591,3523.9,3523.4,2.97976767]
[1754086063514,0.001,3523.9,3523.4,3.88956767]
[1754086063808,0.001,3523.9,3523.4,7.59073247]
[1754086063972,0.001,3523.9,3523.4,7.5623508]
[1754086065580,0.001,3523.9,3523.8,5.8378455]